[Event "Presidents Day GM-Norm 2024"]
[Site "Santa Clara"]
[Date "2024.02.18"]
[Round "6.3"]
[White "Deng, Henry"]
[Black "Delgado Ramirez, Neuris"]
[Result "1/2-1/2"]
[ECO "B23"]
[WhiteElo "2281"]
[BlackElo "2517"]
[Annotator "TA"]
[PlyCount "98"]
[EventDate "2024.02.13"]
[EventType "tourn"]
[EventCountry "USA"]
[SourceTitle "playchess.com"]
[Source "ChessBase"]
[SourceQuality "1"]
[TimeControl "5400+30"]

{[%evp 9,98,0,0,0,13,20,47,70,59,34,53,0,23,41,29,35,36,32,22,16,15,16,67,15,18,0,0,8,15,13,13,16,10,11,13,13,14,14,21,0,0,0,0,0,0,0,0,0,0,0,0,0,0,0,0,0,0,0,0,0,-2,-2,0,0,7,6,6,7,11,0,0,0,0,-8,-8,-8,-8,-8,0,0,0,0,-4,-4,-4,-4,-4,-4,-4,-4,-12]} 1. e4 {[%emt 0:00:01]} c5 {[%emt 0:05:38]} 2. Nc3 {[%emt 0:00:24]} e6 {[%emt 0:01:09]} 3. d4 {[%emt 0:00:47]} cxd4 {[%emt 0:00:10]} 4. Qxd4 {[%emt 0:00:03]} Nc6 {[%emt 0:00:22]} 5. Qe3 {[%emt 0:00:54]} Nf6 {[%emt 0:03:27]} 6. Nf3 {[%emt 0:00:31]} Be7 {[%emt 0:03:51]} 7. e5 {[%emt 0:02:18]} Nb4 {[%emt 0:00:42]} 8. Qd2 {[%emt 0:09:54] White is slightly better.} (8. exf6 Nxc2+ 9. Ke2 Bxf6 $17 (9... Nxe3 10. fxe7 Qxe7 11. Bxe3 $17)) 8... Nfd5 {[%emt 0:00:17]} 9. Ne4 {[%emt 0:02:50] Strongly threatening c4.} Nc6 {[%emt 0:00:16]} 10. c3 {[%emt 0:05:24]} (10. Bc4 $14) 10... O-O {[%emt 0:01:21]} 11. Bc4 {[%emt 0:02:21]} d6 {[%emt 0:03:39]} 12. exd6 {[%emt 0:03:10]} Bxd6 {[%emt 0:00:05]} 13. Nxd6 {[%emt 0:03:23]} Qxd6 {[%emt 0:00:04]} 14. O-O {[%emt 0:02:49]} b6 {[%emt 0:02:17]} 15. Rd1 {[%emt 0:02:55][%cal Od2g5]} Nce7 {[%emt 0:03:51]} (15... Rd8 $11) 16. Bxd5 {[%emt 0:05:44]} (16. Be2 $14 Qb8 17. b3) 16... Qxd5 $11 {[%emt 0:07:07] The position is equal.} 17. Qxd5 {[%emt 0:01:32]} Nxd5 {[%emt 0:00:03]} 18. c4 {[%emt 0:00:49] Black is weak on the dark squares} Ne7 {[%emt 0:00:05]} 19. b3 {[%emt 0:02:48] [#] Hoping for Ba3.} Nf5 {[%emt 0:00:19]} 20. Ba3 {[%emt 0:01:20]} Re8 {[%emt 0:00:04]} 21. Nd4 {[%emt 0:05:17]} Nxd4 {[%emt 0:00:12]} 22. Rxd4 {[%emt 0:00:01]} e5 {[%emt 0:00:34]} 23. Re1 {[%emt 0:00:33][%cal Oe1e5]} Be6 {[%emt 0:03:42]} 24. Rxe5 {[%emt 0:01:42]} Bxc4 $1 {[%emt 0:01:01]} 25. Rxe8+ {[%emt 0:00:36]} Rxe8 {[%emt 0:00:03][%mdl 4096] Endgame. KRB-KRB} 26. Be7 {[%emt 0:03:29]} (26. bxc4 $2 Re1#) 26... Bb5 {[%emt 0:01:01]} 27. Rd8 {[%emt 0:00:06]} f6 {[%emt 0:00:13]} 28. Rxe8+ {[%emt 0:00:20]} Bxe8 {[%emt 0:00:07] KB-KB} 29. f3 {[%emt 0:00:25]} Kf7 {[%emt 0:00:07]} 30. Bb4 {[%emt 0:00:41]} Ke6 {[%emt 0:00:07]} 31. Kf2 {[%emt 0:00:13]} Bg6 {[%emt 0:00:10]} 32. Bf8 {[%emt 0:00:05]} Bb1 {[%emt 0:01:06]} 33. a3 {[%emt 0:00:44]} g6 {[%emt 0:00:19]} 34. Ke3 {[%emt 0:00:33]} Bc2 {[%emt 0:01:11]} 35. b4 {[%emt 0:00:33]} Kd5 {[%emt 0:00:05]} 36. Be7 {[%emt 0:01:37]} f5 {[%emt 0:00:05]} 37. Kf4 {[%emt 0:02:50]} Bd3 {[%emt 0:01:17]} 38. Kg5 {[%emt 0:00:59]} Bf1 {[%emt 0:00:46]} 39. g4 {[%emt 0:01:06]} fxg4 {[%emt 0:00:24]} 40. fxg4 {[%emt 0:00:02]} Be2 {[%emt 0:00:25]} 41. h4 {[%emt 0:00:50]} Kc4 {[%emt 0:00:14]} 42. Kh6 {[%emt 0:01:35]} Bxg4 {[%emt 0:00:04]} 43. Kxh7 {[%emt 0:00:02]} Bh5 {[%emt 0:00:27]} 44. Bd6 {[%emt 0:01:50]} a6 {[%emt 0:01:02]} 45. Bc7 {[%emt 0:00:09]} b5 {[%emt 0:02:22]} 46. Kh6 {[%emt 0:00:12]} Kb3 {[%emt 0:00:07]} 47. Kg5 {[%emt 0:00:04]} Kxa3 {[%emt 0:00:05]} 48. Ba5 {[%emt 0:00:03]} Kb3 {[%emt 0:03:25]} 49. Kf4 {[%emt 0:00:07]} Kc4 {[%emt 0:09:26] Weighted Error Value: White=0.05 (flawless) /Black=0.06 (flawless) .  Mistake:       	White=2     	Black=1      Inaccurate:     	---       	Black=1      OK:         	White=25    	Black=16     Best:        	White=1     	---        Strong:       	---       	Black=1} 1/2-1/2

[Event "Presidents Day GM-Norm 2024"]
[Site "Santa Clara"]
[Date "2024.02.18"]
[Round "6.4"]
[White "Stearman, Josiah"]
[Black "Jiang, Lucas"]
[Result "1-0"]
[ECO "D27"]
[WhiteElo "2455"]
[BlackElo "2258"]
[Annotator "TA"]
[PlyCount "73"]
[EventDate "2024.02.13"]
[EventType "tourn"]
[EventCountry "USA"]
[SourceTitle "playchess.com"]
[Source "ChessBase"]
[SourceQuality "1"]
[TimeControl "5400+30"]

{[%evp 21,73,16,29,0,0,8,27,21,20,0,11,0,0,0,0,-9,0,-6,64,59,63,59,58,52,55,37,27,-33,-30,-11,-8,-26,89,82,81,80,72,0,364,360,361,357,364,349,349,333,330,295,308,308,303,299,3204,2901]} 1. d4 {[%emt 0:08:50]} d5 {[%emt 0:00:28]} 2. c4 {[%emt 0:00:20]} dxc4 {[%emt 0:00:18]} 3. Nf3 {[%emt 0:00:15]} Nf6 {[%emt 0:00:13]} 4. e3 {[%emt 0:00:09]} e6 {[%emt 0:00:12]} 5. Bxc4 {[%emt 0:00:06]} a6 {[%emt 0:00:07]} 6. O-O {[%emt 0:00:08]} c5 {[%emt 0:00:08]} 7. b3 {[%emt 0:01:23]} Nbd7 {[%emt 0:02:59]} 8. Bb2 {[%emt 0:00:27]} b5 {[%emt 0:02:31]} 9. Be2 {[%emt 0:02:43]} Bb7 {[%emt 0:00:51]} 10. Nbd2 {[%emt 0:01:07]} Be7 {[%emt 0:01:29]} 11. a4 {[%emt 0:01:30]} b4 {[%emt 0:06:39]} 12. a5 {[%emt 0:00:59]} O-O {[%emt 0:01:12]} 13. Nc4 {[%emt 0:00:44]} Bd5 {[%emt 0:02:40]} 14. Qc2 {[%emt 0:00:39] White has an edge.} Qc7 {[%emt 0:01:59]} 15. dxc5 {[%emt 0:01:05]} Bxc5 {[%emt 0:07:52]} 16. Rfc1 {[%emt 0:05:17][%cal Oc4b6]} Qb7 {[%emt 0:11:40]} 17. Ne1 {[%emt 0:05:49][%cal Bf3e1,Be1d3,Bd3e5][%mdl 32]} Rfc8 {[%emt 0:05:46]} 18. Bf3 {[%emt 1:07:59]} Rab8 {[%emt 0:07:47]} 19. Qe2 {[%emt 0:00:00]} Qb5 {[%emt 0:11:40]} (19... Be7 $11) 20. e4 $14 {[%emt 0:00:00]} Bc6 {[%emt 0:01:52]} 21. Nd3 {[%emt 0:00:00] Nxc5 would now be deadly.} Be7 {[%emt 0:00:46]} 22. Nde5 {[%emt 0:00:00]} Bb7 {[%emt 0:02:41]} 23. Nxd7 {[%emt 0:00:00]} Nxd7 {[%emt 0:00:24]} 24. Qd2 {[%emt 0:00:00]} ({Better is} 24. Bd4 $11) 24... Bg5 $15 {[%emt 0:10:04]} 25. Qd6 {[%emt 0:00:00]} Bxc1 {[%emt 0:00:58]} 26. Rxc1 {[%emt 0:00:00]} h6 {[%emt 0:11:35]} (26... Nf6 $11 {keeps the balance.}) 27. h4 $40 {[%emt 0:00:00][%mdl 128] Threatens to win with Rd1. White has strong attack.} e5 {[%emt 0:01:23]} 28. Bg4 $1 {[%emt 0:00:00]} Rd8 {[%emt 0:00:21]} 29. Rd1 {[%emt 0:00:00] White has more active pieces.} (29. Qe7 $1 $16 {And now Nd6 would win.} Nf6 (29... Bxe4 $2 30. Nd6 $18) 30. Nd6 (30. Nxe5 $2 Qe8 $19) 30... Rxd6 31. Qxd6) 29... Nf6 $2 {[%emt 0:02:03][%mdl 8192]} (29... Nf8 $11 {and Black is okay.} 30. Qxd8 Rxd8 31. Rxd8 Qc6 (31... Bxe4 32. Bxe5 Bd5 33. Bd6 $16)) 30. Qxd8+ $18 {[%emt 0:00:00]} Rxd8 {[%emt 0:00:05]} 31. Rxd8+ {[%emt 0:00:00]} Kh7 {[%emt 0:00:04] [#] Black is weak on the dark squares} 32. Bf5+ {[%emt 0:00:00]} g6 {[%emt 0:00:05][%cal Bg7g6,Bg6f5,Bf5e4][%mdl 32]} 33. Bxe5 {[%emt 0:00:00]} gxf5 {[%emt 0:00:34]} (33... Bxe4 34. Bxf6 (34. Bxe4 Qxe5 35. Nxe5 Nxe4 $18) (34. Bxe4 Qxe5 35. Nxe5 Nxe4 $18)) 34. Bxf6 {[%emt 0:00:00] White threatens h5 and mate.} Kg6 {[%emt 0:02:41] [#]} (34... fxe4 $2 {is the wrong capture.} 35. Ne5 $18) (34... Bxe4 35. h5) 35. Rd6 {[%emt 0:00:00] aiming for Ne5+.} fxe4 {[%emt 0:03:12]} (35... Bxe4 $2 {loses.} 36. Ne5+ Kh7 37. Rd8 $18 (37. Nxf7 Qc5 $17) (37. Nxf7 Qc5 $17)) 36. g4 {[%emt 0:00:00] h5+ would kill now.} h5 $2 {[%emt 0:01:20]} (36... Kh7) 37. Ne5+ {[%emt 0:09:30] Weighted Error Value: White=0.10 (very precise) /Black=0.36.  Loses game:     	---       	Black=1      Mistake:       	White=2     	Black=3      OK:         	White=7     	Black=6      Best:        	White=5     	Black=3      Strong:       	White=1     	---} 1-0

[Event "Presidents Day GM-Norm 2024"]
[Site "Santa Clara"]
[Date "2024.02.18"]
[Round "6.5"]
[White "Budisavljevic, Luka"]
[Black "Harsha Bharathakoti"]
[Result "1/2-1/2"]
[ECO "D35"]
[WhiteElo "2475"]
[BlackElo "2565"]
[Annotator "TA"]
[PlyCount "72"]
[EventDate "2024.02.13"]
[EventType "tourn"]
[EventCountry "USA"]
[SourceTitle "playchess.com"]
[Source "ChessBase"]
[SourceQuality "1"]
[TimeControl "5400+30"]

{[%evp 12,72,17,25,29,20,16,11,26,25,28,11,11,0,16,11,22,0,12,7,8,10,7,8,12,8,12,10,17,0,0,-13,0,10,7,11,13,0,39,41,86,43,43,6,7,5,8,0,0,0,0,0,0,0,0,0,0,0,0,0,0,0,0]} 1. d4 {[%emt 0:02:31]} Nf6 {[%emt 0:01:57]} 2. c4 {[%emt 0:00:13]} e6 {[%emt 0:00:07]} 3. Nc3 {[%emt 0:00:10]} d5 {[%emt 0:03:34]} 4. cxd5 {[%emt 0:00:09]} exd5 {[%emt 0:00:06]} 5. Bg5 {[%emt 0:00:08]} Be7 {[%emt 0:00:24]} 6. e3 {[%emt 0:00:18]} h6 {[%emt 0:00:13]} 7. Bh4 {[%emt 0:00:34]} Bg4 {[%emt 0:00:16]} 8. Qa4+ {[%emt 0:06:20]} c6 {[%emt 0:03:01]} 9. Bd3 {[%emt 0:00:16] Against Bf5} Nbd7 {[%emt 0:09:15]} 10. h3 {[%emt 0:00:25]} Be6 {[%emt 0:05:53]} 11. Nf3 {[%emt 0:02:00]} O-O {[%emt 0:02:32]} 12. O-O {[%emt 0:03:16]} Bd6 {[%emt 0:08:00]} 13. Ne2 {[%emt 0:02:58]} Re8 {[%emt 0:04:12]} 14. Bg3 {[%emt 0:03:53]} Nb6 {[%emt 0:13:16][%cal Bd7b6,Bb6c8,Bc8d6][%mdl 32]} 15. Qc2 {[%emt 0:00:24]} Bxg3 {[%emt 0:00:26]} 16. Nxg3 {[%emt 0:00:31]} Nc8 {[%emt 0:11:10]} 17. Ne5 {[%emt 0:02:38]} Nd6 {[%emt 0:01:40]} 18. f3 {[%emt 0:07:25]} Nd7 {[%emt 0:05:42]} 19. Qf2 {[%emt 0:07:23]} f6 {[%emt 0:03:51]} 20. Nxd7 {[%emt 0:07:31]} Qxd7 {[%emt 0:00:30]} 21. e4 {[%emt 0:01:12]} Bf7 {[%emt 0:06:55][%cal Be6f7,Bf7g6,Bg6h7][%mdl 32]} 22. Rfe1 {[%emt 0:02:09] Black must now prevent e5.} Bg6 {[%emt 0:02:28]} (22... dxe4 {with more complications.} 23. fxe4 Qd8 24. e5 fxe5 25. dxe5 Nc4) 23. Rad1 {[%emt 0:01:54]} Nf7 {[%emt 0:01:19]} 24. Bc2 {[%emt 0:04:38]} (24. Bb1 {simplifies} Rad8 25. exd5 Rxe1+ 26. Rxe1 Bxb1 27. dxc6 bxc6 28. Rxb1 Qxd4 29. Qxd4 Rxd4 30. Rc1) 24... dxe4 {[%emt 0:04:35]} (24... Kh8 {simplifies} 25. Ba4 a5 26. Bb3 dxe4 27. Nxe4 b6) 25. Nxe4 {[%emt 0:05:06] [#] Nc5 would now be deadly.} Bh7 {[%emt 0:02:14]} 26. Qg3 {[%emt 0:05:45]} Kh8 {[%emt 0:01:50]} 27. Nc5 {[%emt 0:01:05]} Qd6 {[%emt 0:01:23] The position is equal.} (27... Rxe1+ {simplifies} 28. Qxe1 Qc7 29. Bb3 Bg8) 28. Qxd6 {[%emt 0:01:09]} (28. Rxe8+ {simplifies} Rxe8 29. Qxd6 Nxd6 30. Ba4) 28... Nxd6 {[%emt 0:00:05]} 29. Bxh7 {[%emt 0:01:28]} Kxh7 {[%emt 0:00:03]} 30. Kf2 {[%emt 0:01:03]} Kg6 {[%emt 0:03:13]} 31. Rxe8 {[%emt 0:01:15]} Rxe8 $11 {[%emt 0:00:04] KRN-KRN} 32. d5 {[%emt 0:01:11]} cxd5 {[%emt 0:00:10]} 33. Rxd5 {[%emt 0:00:14]} Re5 {[%emt 0:02:15]} 34. Rxe5 {[%emt 0:02:03]} fxe5 {[%emt 0:00:03]} 35. b3 {[%emt 0:00:48]} b6 {[%emt 0:00:38]} 36. Nd3 {[%emt 0:00:29]} Kf5 {[%emt 0:00:12] Weighted Error Value: White=0.07 (flawless) /Black=0.06 (flawless) .  Inaccurate:     	White=2     	Black=2      OK:         	White=8     	Black=12} 1/2-1/2

[Event "Presidents Day GM-Norm 2024"]
[Site "Santa Clara"]
[Date "2024.02.19"]
[Round "7.1"]
[White "Harsha Bharathakoti"]
[Black "Sathish, Pranav"]
[Result "1-0"]
[ECO "D02"]
[WhiteElo "2565"]
[BlackElo "2357"]
[Annotator "RC"]
[PlyCount "95"]
[EventDate "2024.02.13"]
[EventType "tourn"]
[EventCountry "USA"]
[SourceTitle "playchess.com"]
[Source "ChessBase"]
[SourceQuality "1"]
[TimeControl "5400+30"]

1. Nf3 {[%emt 0:04:18]} d5 {[%emt 0:00:09]} 2. g3 {[%emt 0:01:46]} Nd7 {[%emt 0:00:10]} 3. d4 {[%emt 0:00:04]} Nb6 {[%emt 0:00:09]} 4. Nc3 {[%emt 0:00:04]} Nf6 {[%emt 0:00:24]} 5. Bg2 {[%emt 0:00:29]} g6 {[%emt 0:00:15]} 6. a4 {[%emt 0:06:26]} a5 {[%emt 0:00:36]} 7. O-O {[%emt 0:03:34]} Bg7 {[%emt 0:00:43]} 8. b3 {[%emt 0:11:51]} O-O {[%emt 0:00:09]} 9. Bb2 {[%emt 0:03:24]} Re8 {[%emt 0:02:42]} 10. Re1 {[%emt 0:01:29]} Ne4 {[%emt 0:01:26]} 11. Ne5 {[%emt 0:05:02]} Nxc3 {[%emt 0:05:20]} 12. Bxc3 {[%emt 0:00:05]} c6 {[%emt 0:00:12]} 13. e4 {[%emt 0:08:05]} dxe4 {[%emt 0:05:00]} 14. Bxe4 {[%emt 0:00:06]} Nd5 {[%emt 0:00:37]} 15. Bb2 {[%emt 0:00:14]} Nf6 {[%emt 0:01:26]} 16. Bg2 {[%emt 0:02:06]} Qc7 {[%emt 0:01:09]} 17. Qe2 {[%emt 0:11:18]} Nd7 {[%emt 0:06:19]} 18. Nd3 {[%emt 0:07:47]} b6 {[%emt 0:00:42]} 19. h4 {[%emt 0:04:40]} Bb7 {[%emt 0:01:49]} 20. h5 {[%emt 0:00:05]} Rad8 {[%emt 0:02:28]} 21. Rad1 {[%emt 0:00:19]} c5 {[%emt 0:04:23]} 22. Bxb7 {[%emt 0:02:42]} Qxb7 {[%emt 0:00:18]} 23. dxc5 {[%emt 0:00:16]} Bxb2 {[%emt 0:00:29]} 24. Nxb2 {[%emt 0:00:03]} Nxc5 {[%emt 0:00:36]} 25. Rxd8 {[%emt 0:12:29]} Rxd8 {[%emt 0:00:01]} 26. Qxe7 {[%emt 0:00:07]} Qxe7 {[%emt 0:00:09]} 27. Rxe7 {[%emt 0:00:02]} Kf8 {[%emt 0:01:53]} 28. Re2 {[%emt 0:00:26]} Ne6 {[%emt 1:04:56]} 29. Kg2 {[%emt 0:15:43]} Rb8 {[%emt 0:00:00]} 30. hxg6 {[%emt 0:00:00]} hxg6 {[%emt 0:01:00]} 31. Rd2 {[%emt 0:01:00]} b5 {[%emt 0:00:00]} 32. Kf1 {[%emt 0:00:00]} Ke7 {[%emt 0:01:00]} 33. Ke2 {[%emt 0:00:00]} bxa4 {[%emt 0:00:00]} 34. Nxa4 {[%emt 0:00:00]} Rd8 {[%emt 0:00:00]} 35. Rxd8 {[%emt 0:00:00]} Nxd8 {[%emt 0:00:00]} 36. Kd3 {[%emt 0:00:00]} Kd6 {[%emt 0:00:00]} 37. Kc4 {[%emt 0:00:00]} Ne6 {[%emt 0:00:00]} 38. Kb5 {[%emt 0:00:00]} Nd4+ {[%emt 0:00:00]} 39. Kxa5 {[%emt 0:00:00]} Nxc2 {[%emt 0:00:00]} 40. b4 {[%emt 0:00:00]} Ke5 {[%emt 0:00:00]} 41. b5 {[%emt 0:00:00]} Na3 {[%emt 0:00:00]} 42. Kb4 {[%emt 0:00:00]} Nxb5 {[%emt 0:00:00]} 43. Kxb5 {[%emt 0:00:00]} Ke4 {[%emt 0:00:00]} 44. Nc5+ {[%emt 0:00:00]} Kf3 {[%emt 0:00:00]} 45. Nd3 {[%emt 0:00:00]} Ke2 {[%emt 0:00:00]} 46. Kc4 {[%emt 0:07:30]} f5 {[%emt 0:07:00]} 47. f4 {[%emt 0:00:00]} Kf3 {[%emt 0:00:00]} 48. Ne5+ {[%emt 0:00:00]} 1-0

[Event "Presidents Day GM-Norm 2024"]
[Site "Santa Clara"]
[Date "2024.02.19"]
[Round "7.2"]
[White "Jiang, Lucas"]
[Black "Budisavljevic, Luka"]
[Result "1/2-1/2"]
[ECO "C64"]
[WhiteElo "2258"]
[BlackElo "2475"]
[Annotator "TA"]
[PlyCount "108"]
[EventDate "2024.02.13"]
[EventType "tourn"]
[EventCountry "USA"]
[SourceTitle "playchess.com"]
[Source "ChessBase"]
[SourceQuality "1"]
[TimeControl "5400+30"]

{[%evp 10,108,39,33,39,30,40,25,33,18,39,15,23,0,10,11,25,27,8,0,6,-42,0,0,14,18,54,48,49,41,56,51,76,46,50,35,115,62,50,70,92,38,78,77,82,95,90,60,54,57,61,48,53,40,136,105,108,107,130,104,135,86,95,66,99,74,156,130,150,150,199,198,198,31,198,144,277,274,273,220,237,246,231,214,251,216,330,226,402,394,271,110,121,0,0,0,0,0,0,0,0]} 1. e4 {[%emt 0:00:02]} e5 {[%emt 0:01:59]} 2. Nf3 {[%emt 0:00:04]} Nc6 {[%emt 0:00:07]} 3. Bb5 {[%emt 0:00:06]} a6 {[%emt 0:00:09]} 4. Ba4 {[%emt 0:00:06]} Bc5 {[%emt 0:00:17]} 5. c3 {[%emt 0:01:23]} Nge7 {[%emt 0:00:09]} 6. O-O {[%emt 0:01:04]} Ng6 {[%emt 0:00:12]} 7. d4 {[%emt 0:03:19]} Ba7 {[%emt 0:00:06]} 8. Be3 {[%emt 0:02:15]} O-O {[%emt 0:00:18]} 9. Nbd2 {[%emt 0:01:38][%cal Bb1d2,Bd2e4,Be4c5][%mdl 32]} (9. d5 $5 Bxe3 10. fxe3 $11) 9... exd4 {[%emt 0:00:35]} 10. cxd4 {[%emt 0:01:20]} d5 {[%emt 0:00:05]} 11. h3 {[%emt 0:09:20]} dxe4 {[%emt 0:00:46]} 12. Nxe4 {[%emt 0:00:07]} Nb4 {[%emt 0:06:59][%cal Bc6b4,Bb4d5,Bd5e7][%mdl 32]} 13. Nc5 {[%emt 0:12:02]} Nd5 {[%emt 0:04:46]} 14. Qd3 {[%emt 0:03:29]} c6 {[%emt 0:06:01]} 15. a3 {[%emt 0:04:11]} (15. Rfe1 $11 {was preferrable.}) 15... Nde7 {[%emt 0:04:50] Threatens to win with ...Bxc5.} 16. Qc3 {[%emt 0:10:25]} Bb8 {[%emt 0:05:12]} 17. Rfe1 {[%emt 0:03:27]} Qc7 {[%emt 0:02:21]} 18. Bb3 {[%emt 0:04:10]} Bf5 {[%emt 0:02:57]} 19. Bg5 {[%emt 0:05:09]} b6 {[%emt 0:05:23]} 20. Bxe7 {[%emt 0:01:45]} Nxe7 {[%emt 0:00:02][%cal Bg6e7,Be7d5,Bd5f6][%mdl 32]} 21. Ne4 {[%emt 0:02:09]} Nd5 {[%emt 0:04:21]} 22. Qd2 {[%emt 0:06:44]} Ba7 {[%emt 0:05:46]} (22... Qf4 $14) 23. Qg5 {[%emt 0:05:15]} (23. Rac1 $16 {Strongly threatening Bxd5.} Rad8 24. Ng3) 23... Bxe4 $1 $14 {[%emt 0:00:51]} 24. Rxe4 {[%emt 0:00:05][%cal Oa1c1]} Nf6 {[%emt 0:12:41]} 25. Re5 {[%emt 0:03:29]} (25. Rh4 $16) 25... h6 {[%emt 0:01:28]} 26. Qg6 $36 {[%emt 0:02:51][%mdl 2048] Black is under strong pressure.} Rad8 {[%emt 0:05:58]} 27. Rae1 {[%emt 0:01:34] White has more active pieces.} Nd5 {[%emt 0:01:30] Wards off Re7} 28. Qf5 {[%emt 0:03:46]} Qd7 {[%emt 0:02:34]} 29. Qxd7 {[%emt 0:02:24]} Rxd7 {[%emt 0:00:01]} 30. Bxd5 {[%emt 0:00:28]} cxd5 {[%emt 0:00:02]} 31. Re7 {[%emt 0:03:57]} Rfd8 {[%emt 0:00:04]} (31... Rxe7 $14 32. Rxe7 Bb8) 32. Re8+ $16 {[%emt 0:01:54]} Rxe8 {[%emt 0:00:06]} 33. Rxe8+ {[%emt 0:00:04][%mdl 4096] Endgame. KRB-KRN} Kh7 {[%emt 0:00:00]} 34. Rc8 {[%emt 0:00:08]} f6 {[%emt 0:02:50] Repels Ne5} 35. b4 {[%emt 0:01:47]} (35. Kf1 $142) 35... Kg6 {[%emt 0:02:20]} 36. g4 {[%emt 0:02:29]} Kf7 {[%emt 0:00:11]} 37. a4 {[%emt 0:02:32][%cal Ba3a4,Ba4b5][%mdl 32]} g5 {[%emt 0:01:44]} ({Black should play} 37... b5) 38. b5 {[%emt 0:00:58]} axb5 {[%emt 0:00:49]} 39. axb5 {[%emt 0:00:05]} Rb7 {[%emt 0:00:07] [#]} (39... Re7 $16 {was necessary.} 40. Rh8 Kg7) 40. Ne1 $1 $18 {[%emt 0:01:24]} Bb8 {[%emt 0:01:17] [#]} 41. Rc6 $2 {[%emt 0:00:57]} (41. Ng2 $1 $18) 41... Ke7 $2 {[%emt 0:00:23]} (41... Rc7 $1 $14) 42. Ng2 {[%emt 0:00:35]} (42. Nc2 $18) 42... Bf4 {[%emt 0:01:20]} (42... Rc7 $16 {keeps fighting.}) 43. Nxf4 {[%emt 0:00:26]} gxf4 {[%emt 0:00:01] KR-KR} 44. Kg2 {[%emt 0:00:07]} Ra7 {[%emt 0:00:05]} 45. Kf3 {[%emt 0:00:41]} Ra4 {[%emt 0:01:52]} 46. Kxf4 {[%emt 0:00:16][%cal Of4f5] Kf5! is the strong threat.} Rxd4+ {[%emt 0:00:01]} 47. Kf5 {[%emt 0:00:28]} Rd3 {[%emt 0:00:01]} (47... Re4 $142 48. Rxf6 Re2) 48. f4 {[%emt 0:00:54] Re6+ would now be deadly.} (48. Rxf6 $2 Rf3+ (48... Rxh3 49. Rxb6 d4 50. Re6+ Kd7 51. Ke5 $16) 49. Ke5 Rxf6 $19) 48... Rxh3 $2 {[%emt 0:00:21]} (48... Re3) 49. Re6+ {[%emt 0:00:39]} (49. Rxf6 d4 $18) (49. Rxb6 h5 $14) 49... Kd7 {[%emt 0:00:01]} 50. Rxb6 {[%emt 0:00:29]} (50. Kxf6 $18 {[%cal Of4f5] is the precise move to win.} Rb3 51. Rxb6) 50... d4 {[%emt 0:00:06]} 51. Rc6 {[%emt 0:00:31]} ({Much worse is} 51. Rxf6 $6 d3 52. Ra6 d2 53. Ra7+ Kd6 $11) (51. Kxf6 $16 {Black must now prevent Ke5.} d3 52. Ra6) 51... Rc3 $11 {[%emt 0:10:22]} 52. Re6 {[%emt 0:00:23]} d3 {[%emt 0:01:25] aiming for ...d2.} 53. Re1 {[%emt 0:00:28]} (53. Rxf6 $2 {loses.} d2 54. Kg6 d1=Q $19 (54... d1=B 55. Kxh6 Bxg4 56. b6 $17)) 53... Rc4 {[%emt 0:01:09]} 54. Rd1 {[%emt 0:00:34]} Rd4 {[%emt 0:00:07]} 1/2-1/2